bitfinex-derivatives/quotes_BTCF0:USTF0_20251119
["timestamp","ask_amount","ask_price","bid_price","bid_amount"]
[1763526242325,0.04361,91773.0,91772.0,0.7567457]
[1763526244920,0.01294347,91784.0,91772.0,0.7567457]
[1763526244921,0.00016347,91784.0,91783.0,0.1326135]
[1763526245122,0.00016347,91784.0,91783.0,0.7567335]
[1763526250123,0.05655347,91784.0,91783.0,0.7567335]
[1763526250330,0.00016347,91784.0,91783.0,0.7567335]
[1763526253630,0.05689,91800.0,91799.0,0.02358]
[1763526253822,0.08414355,91800.0,91799.0,0.02358]
[1763526254728,0.1694062,91800.0,91799.0,0.02358]
[1763526255030,0.08414355,91800.0,91799.0,0.02358]
[1763526255231,0.05908803,91800.0,91799.0,0.02358]
[1763526256228,0.04388231,91806.0,91805.0,0.1325873]
[1763526256432,0.06892511,91806.0,91805.0,0.3958673]
[1763526256836,0.04388231,91806.0,91805.0,0.3958673]
[1763526257525,0.02150231,91806.0,91805.0,0.3958673]
[1763526258129,0.04388231,91806.0,91805.0,0.3958673]
[1763526258328,0.04488231,91806.0,91805.0,0.3958673]
[1763526261126,0.00127231,91806.0,91805.0,0.3958673]
[1763526262234,0.02250231,91806.0,91805.0,0.3958673]
[1763526262429,0.04572231,91806.0,91805.0,0.3958673]
[1763526264540,0.04572231,91806.0,91805.0,0.3958273]
[1763526266538,0.00127231,91806.0,91805.0,0.3958273]
[1763526268839,0.00027231,91806.0,91805.0,0.3958273]
[1763526275340,0.01278,91816.0,91815.0,0.1325754]
[1763526275545,0.40546,91823.0,91822.0,0.1325671]
[1763526276041,0.40546,91823.0,91822.0,0.3957671]
[1763526278445,0.40646,91823.0,91822.0,0.3957671]
[1763526278841,0.04566,91823.0,91822.0,0.3957671]
[1763526280047,0.04566,91823.0,91822.0,0.7565671]
[1763526280548,0.02248,91823.0,91822.0,0.7565671]
[1763526281649,0.001,91823.0,91822.0,0.7565671]
[1763526284847,0.02248,91823.0,91822.0,0.7565671]
[1763526285053,0.04566,91823.0,91822.0,0.7565671]
[1763526285451,0.02248,91823.0,91822.0,0.7565671]
[1763526286347,0.001,91823.0,91822.0,0.7565671]
[1763526289253,0.37439,91854.0,91845.0,0.1325399]
[1763526289460,0.05825,91854.0,91853.0,0.02358]
[1763526289656,0.04466,91837.0,91836.0,0.00016337]
[1763526289849,0.04466,91833.0,91832.0,0.26316]
[1763526290048,0.03507,91818.0,91817.0,0.38438]
[1763526290248,0.05825,91818.0,91817.0,0.7565331]
[1763526291259,0.00219803,91820.0,91819.0,0.02358]
[1763526291460,0.04482304,91827.0,91826.0,0.1325624]
[1763526291658,0.04482304,91827.0,91826.0,0.7565224]
[1763526293755,0.02164304,91827.0,91826.0,0.7565224]
[1763526294059,0.04482304,91827.0,91826.0,0.7565224]
[1763526295257,0.00016304,91827.0,91826.0,0.7565224]
[1763526295958,0.00016304,91827.0,91826.0,0.7634124]
[1763526296352,0.00016304,91827.0,91826.0,0.7565224]
[1763526297361,0.04482304,91827.0,91826.0,0.7565224]
[1763526297864,0.04482304,91827.0,91826.0,0.7564824]
[1763526298857,0.04482304,91827.0,91826.0,0.3608]
[1763526299063,0.04482304,91827.0,91826.0,0.6475]
[1763526300560,0.00016304,91827.0,91825.0,0.3608]
[1763526300758,0.04627,91809.0,91807.0,0.4698049]
[1763526300963,0.04627,91809.0,91808.0,0.26328337]
[1763526301263,0.05938,91809.0,91808.0,0.26328337]
[1763526302151,0.08480071,91809.0,91808.0,0.26328337]
[1763526302972,0.1552749,91807.0,91806.0,0.00027231]
[1763526303168,0.04627,91796.0,91795.0,0.3608]
[1763526303871,0.04627,91796.0,91795.0,0.4698192]
[1763526304272,0.05938,91791.0,91790.0,0.1090244]
[1763526304566,0.05938,91791.0,91790.0,0.1531844]
[1763526304567,0.04627,91791.0,91790.0,0.1531844]
[1763526306571,0.04627,91791.0,91789.0,0.26312]
[1763526306572,0.04643337,91805.0,91804.0,0.04416]
[1763526307365,0.04643337,91805.0,91798.0,0.40496]
[1763526307366,0.04627,91799.0,91798.0,0.40496]
[1763526308173,0.04627,91797.0,91796.0,0.26316]
[1763526311068,0.04627,91788.0,91787.0,0.3608]
[1763526311471,0.04627,91787.0,91784.0,0.26316]
[1763526311864,0.04627,91787.0,91776.0,0.37247]
[1763526312065,0.04627,91787.0,91779.0,0.26316]
[1763526312867,0.04627,91787.0,91782.0,0.1090346]
[1763526313067,0.04627,91787.0,91779.0,0.26316]
[1763526313674,0.04627,91787.0,91781.0,0.1090355]
[1763526315363,0.04627,91787.0,91779.0,0.26316]
[1763526315769,0.04627,91787.0,91780.0,0.1090364]
[1763526316078,0.04627,91787.0,91779.0,0.26316]
[1763526317677,0.155307,91780.0,91779.0,0.26316]
[1763526317878,0.15750503,91780.0,91779.0,0.26316]
[1763526318577,0.04846803,91780.0,91779.0,0.4163582]
[1763526320879,0.04846803,91780.0,91779.0,0.30732]
[1763526321181,0.04846803,91780.0,91779.0,0.26316]
[1763526321371,0.04846803,91780.0,91770.0,0.00016337]
[1763526321372,0.04627,91771.0,91770.0,0.00016337]
[1763526322081,0.40707,91771.0,91770.0,0.00016337]
[1763526322582,0.04627,91767.0,91757.0,0.1090639]
[1763526322883,0.04627,91767.0,91760.0,0.10906]
[1763526323383,0.1553224,91767.0,91760.0,0.10906]
[1763526325382,0.1553224,91767.0,91757.0,0.00016337]
[1763526325579,0.1553224,91767.0,91759.0,0.1090614]
[1763526325782,0.04627,91767.0,91766.0,0.04486243]
[1763526325982,0.04475,91767.0,91766.0,0.04486243]
[1763526327068,0.00219803,91770.0,91769.0,0.04459]
[1763526327376,0.04780803,91770.0,91769.0,0.04459]
[1763526327573,0.04780803,91770.0,91769.0,0.02202]
[1763526327774,0.04780803,91770.0,91769.0,0.04329]
[1763526328383,0.00219803,91770.0,91769.0,0.04329]
[1763526328885,0.04780803,91770.0,91769.0,0.04329]
[1763526329983,0.00219803,91770.0,91769.0,0.04329]
[1763526334887,0.02464803,91770.0,91769.0,0.04329]
[1763526335088,0.00219803,91770.0,91769.0,0.04329]
[1763526336695,0.04780803,91770.0,91769.0,0.04329]
[1763526336885,0.04780803,91770.0,91766.0,0.00027243]
[1763526336886,0.02316,91769.0,91766.0,0.00027243]
[1763526337084,0.04561,91767.0,91766.0,0.00027243]
[1763526337688,0.3608,91767.0,91766.0,0.15343583]
[1763526337895,0.02464803,91770.0,91769.0,0.1531599]
[1763526338492,0.04780803,91770.0,91769.0,0.1531599]
[1763526338994,0.04780803,91770.0,91769.0,0.04411]
[1763526340092,0.04561,91767.0,91766.0,0.00027243]
[1763526340495,0.04561,91767.0,91766.0,0.04438243]
[1763526340987,0.00219803,91770.0,91769.0,0.04411]
[1763526341188,0.0276395,91770.0,91769.0,0.04411]
[1763526342592,0.00219803,91770.0,91769.0,0.04411]
[1763526343391,0.40657337,91780.0,91779.0,0.04411]
[1763526343585,0.43421985,91780.0,91779.0,0.153148]
[1763526344500,0.43421985,91780.0,91779.0,0.04411]
[1763526345199,0.4087714,91780.0,91779.0,0.04411]
[1763526348397,0.3631614,91780.0,91779.0,0.04411]
[1763526348898,0.3856114,91780.0,91779.0,0.04411]
[1763526349301,0.4087714,91780.0,91779.0,0.04411]
[1763526349597,0.4087714,91780.0,91767.0,0.3608]
[1763526349598,0.1546616,91767.0,91749.0,0.3608]
[1763526349897,0.1546616,91767.0,91757.0,0.04427337]
[1763526349898,0.04561,91758.0,91757.0,0.04427337]
[1763526350792,0.00219803,91760.0,91759.0,0.04411]
[1763526351590,0.04780803,91760.0,91759.0,0.04411]
[1763526352498,0.04561,91758.0,91757.0,0.00016337]
[1763526352801,0.04561,91758.0,91757.0,0.04427337]
[1763526353908,0.04561,91758.0,91757.0,0.04527337]
[1763526354103,0.04561,91758.0,91757.0,0.00116337]
[1763526357600,0.04561,91758.0,91757.0,0.04616337]
[1763526359505,0.04561,91758.0,91757.0,0.02400337]
[1763526359701,0.04561,91758.0,91757.0,0.00116337]
[1763526360995,0.04376,91748.0,91747.0,7.819e-05]
[1763526361203,0.04376,91737.0,91736.0,0.3608]
[1763526362001,0.04376,91737.0,91736.0,0.38387]
[1763526362305,0.00219803,91740.0,91739.0,0.04523]
[1763526362506,0.02363803,91740.0,91739.0,0.04523]
[1763526362705,0.02272424,91740.0,91739.0,0.04523]
[1763526363307,0.00128424,91740.0,91739.0,0.04523]
[1763526363800,8.621e-05,91740.0,91739.0,0.04523]
[1763526365202,0.04577691,91740.0,91739.0,0.04523]
[1763526366206,0.04577691,91740.0,91736.0,0.3741]
[1763526366207,0.05702,91737.0,91736.0,0.38387]
[1763526366804,0.04376,91737.0,91736.0,0.40603]
[1763526367411,0.04376,91737.0,91736.0,0.38387]
[1763526367605,8.621e-05,91740.0,91739.0,0.1543151]
[1763526367913,0.04577691,91740.0,91739.0,0.04523]
[1763526368106,0.04577691,91740.0,91739.0,0.30851]
[1763526370217,0.04376,91731.0,91730.0,0.04523]
[1763526370411,0.04376,91731.0,91730.0,0.04623]
[1763526374708,0.04376,91731.0,91727.0,0.00016347]
[1763526374709,0.04895,91728.0,91727.0,0.00016347]
[1763526374908,0.04376,91714.0,91713.0,8.91e-05]
[1763526377017,0.3608,91716.0,91714.0,0.1091149]
[1763526377217,0.38224,91716.0,91715.0,0.04523]
[1763526377417,0.40456,91716.0,91715.0,0.04523]
[1763526377620,0.3608,91716.0,91715.0,0.04523]
[1763526377810,0.0019307,91720.0,91714.0,0.1091149]
[1763526377811,0.0019307,91720.0,91719.0,0.05853]
[1763526378919,0.04376,91715.0,91714.0,0.40603]
[1763526380314,0.04476,91715.0,91714.0,0.40603]
[1763526381409,0.04476,91715.0,91714.0,0.38387]
[1763526381613,0.04476,91715.0,91714.0,0.40603]
[1763526382823,0.001,91715.0,91714.0,0.40603]
[1763526384921,0.001,91715.0,91714.0,0.04523]
[1763526385117,0.02398,91715.0,91714.0,0.04523]
[1763526386520,0.04603,91715.0,91714.0,0.04523]
[1763526389426,8.621e-05,91740.0,91739.0,0.04407]
[1763526389926,8.621e-05,91740.0,91739.0,0.40487]
[1763526390522,0.00208621,91740.0,91739.0,0.40487]
[1763526391228,8.621e-05,91740.0,91739.0,0.40487]
[1763526391723,0.00016347,91749.0,91748.0,0.04407]
[1763526391927,0.00016347,91749.0,91748.0,0.4165044]
[1763526393125,0.02163,91748.0,91738.0,0.3608]
[1763526393315,0.04273,91747.0,91746.0,0.1531466]
[1763526394425,0.00016347,91749.0,91748.0,0.04407]
[1763526394624,0.00016347,91749.0,91748.0,0.30739]
[1763526395827,0.02126347,91749.0,91748.0,0.30739]
[1763526396036,0.04289347,91749.0,91748.0,0.04407]
[1763526396217,0.04273,91739.0,91738.0,0.40487]
[1763526396423,0.04273,91739.0,91738.0,0.66823]
[1763526397320,0.0019307,91740.0,91739.0,0.1531551]
[1763526397530,0.0019307,91740.0,91739.0,0.4165151]
[1763526397727,0.0230307,91740.0,91739.0,0.04407]
[1763526398833,0.0446607,91740.0,91739.0,0.04407]
[1763526399331,0.0019307,91740.0,91739.0,0.04407]
[1763526399534,0.0019307,91740.0,91739.0,0.1531551]
[1763526400219,0.02126347,91749.0,91748.0,0.1531444]
[1763526400728,0.00016347,91749.0,91748.0,0.4164644]
[1763526401641,0.36107243,91766.0,91765.0,0.1531242]
[1763526401929,0.36107243,91766.0,91765.0,0.4164842]
[1763526402332,0.00027243,91766.0,91765.0,0.4164842]
[1763526406331,0.00016347,91775.0,91774.0,0.1090435]
[1763526406537,0.00016347,91775.0,91774.0,0.4164335]
[1763526407636,0.00016347,91775.0,91774.0,0.30739]
[1763526413732,0.02126347,91775.0,91774.0,0.30739]
[1763526413933,0.04289347,91775.0,91774.0,0.30739]
[1763526414644,0.00016347,91775.0,91774.0,0.30739]
[1763526418444,0.3608,91784.0,91783.0,0.04462]
[1763526418646,0.3608,91784.0,91783.0,0.30786]
[1763526419443,0.3608,91784.0,91783.0,0.4168928]
[1763526421049,0.40539,91792.0,91791.0,0.1542033]
[1763526421444,0.00016347,91793.0,91792.0,0.05855]
[1763526421844,0.00016347,91793.0,91792.0,0.32175]
[1763526422235,0.40555347,91793.0,91792.0,0.28547]
[1763526422443,0.04459,91783.0,91782.0,0.13146697]
[1763526422647,0.04459,91783.0,91782.0,0.15437697]
[1763526422951,0.02314,91783.0,91782.0,0.15437697]
[1763526423344,0.36196347,91793.0,91792.0,0.02227]
[1763526423648,0.40655347,91793.0,91792.0,0.02227]
[1763526424150,0.04459,91791.0,91790.0,0.0011634]
[1763526424352,0.00116347,91793.0,91792.0,0.05855]
[1763526424648,0.3608,91812.0,91805.0,0.1541867]
[1763526424840,0.02341231,91806.0,91805.0,0.1541867]
[1763526425239,0.00027231,91806.0,91805.0,0.1541867]
[1763526426550,0.00127231,91806.0,91805.0,0.1541867]
[1763526427945,0.00027231,91806.0,91805.0,0.1541867]
[1763526428147,0.00127231,91806.0,91805.0,0.1541867]
[1763526428752,0.00027231,91806.0,91805.0,0.1541867]
[1763526429052,0.02441231,91806.0,91805.0,0.1541867]
[1763526429653,0.00127231,91806.0,91805.0,0.1541867]
[1763526430753,0.04586231,91806.0,91805.0,0.1541867]
[1763526430949,0.04486231,91806.0,91805.0,0.4173467]
[1763526431149,0.04586231,91806.0,91805.0,0.4173467]
[1763526431546,0.00127231,91806.0,91805.0,0.4173467]
[1763526431954,0.04586231,91806.0,91805.0,0.4173467]
[1763526435062,0.00127231,91806.0,91805.0,0.1541867]
[1763526435248,0.04586231,91806.0,91805.0,0.1541867]
[1763526435448,0.00127231,91806.0,91805.0,0.1541867]
[1763526437658,3.47e-06,91815.0,91814.0,0.04518]
[1763526437961,0.38394,91830.0,91829.0,0.04518]
[1763526438160,0.41048999,91830.0,91829.0,0.04518]
[1763526438365,0.3857073,91830.0,91829.0,0.04518]
[1763526438661,0.3625673,91830.0,91829.0,0.04518]
[1763526438864,0.0017673,91830.0,91829.0,0.04518]
[1763526439559,0.04475265,91839.0,91838.0,0.1541475]
[1763526439866,0.06952095,91839.0,91838.0,0.1541475]
[1763526441356,0.04475265,91839.0,91838.0,0.1541475]
[1763526442368,0.04512,91836.0,91835.0,0.4149211]
[1763526443166,0.06986661,91836.0,91835.0,0.4149211]
[1763526443467,0.06986661,91836.0,91835.0,0.4148811]
[1763526444268,0.04512,91836.0,91835.0,0.4148811]
[1763526444664,0.04612,91836.0,91835.0,0.4148811]
[1763526446266,0.04612,91836.0,91835.0,0.30591]
[1763526446667,0.04612,91836.0,91835.0,0.04283]
[1763526447662,0.04612,91836.0,91832.0,0.01364]
[1763526447663,0.04383,91833.0,91832.0,0.1304846]
[1763526447864,0.04383,91831.0,91830.0,0.0011634]
[1763526448065,0.04383,91831.0,91830.0,0.0446534]
[1763526448372,0.06857078,91831.0,91830.0,0.0446534]
[1763526449368,0.04383,91821.0,91820.0,0.02167337]
[1763526449572,0.42938204,91821.0,91820.0,0.00016337]
[1763526449867,0.04383,91809.0,91808.0,0.30653]
[1763526450171,0.04383,91809.0,91808.0,0.31983]
[1763526450568,0.02231,91809.0,91808.0,0.31983]
[1763526451468,0.0017673,91810.0,91809.0,0.1524916]
[1763526453967,0.00016337,91818.0,91817.0,0.1524821]
[1763526454377,0.00016337,91818.0,91817.0,0.4155621]
[1763526455276,0.04399337,91818.0,91817.0,0.04349]
[1763526455473,0.04383,91811.0,91810.0,0.40429]
[1763526455661,0.04383,91811.0,91810.0,0.6685334]
[1763526456074,0.04383,91811.0,91810.0,0.4054534]
[1763526456470,0.04383,91811.0,91810.0,0.5144541]
[1763526457476,0.04383,91811.0,91810.0,0.4054534]
[1763526460071,0.04383,91811.0,91810.0,0.0446534]
[1763526460264,0.04383,91811.0,91810.0,0.1536541]
[1763526463475,0.04383,91811.0,91810.0,0.0446534]
[1763526467674,0.02231,91811.0,91810.0,0.0446534]
[1763526467876,0.04383,91811.0,91810.0,0.0446534]
[1763526471381,0.00016337,91818.0,91817.0,0.1524824]
[1763526471578,0.04399337,91818.0,91817.0,0.30657]
[1763526471771,0.04399337,91818.0,91817.0,0.04349]
[1763526472077,0.05723337,91818.0,91817.0,0.04349]
[1763526472379,0.04399337,91818.0,91817.0,0.04349]
[1763526474183,0.12930903,91818.0,91817.0,0.04349]
[1763526474385,0.04399337,91818.0,91817.0,0.04349]
[1763526476079,0.00016337,91818.0,91817.0,0.04349]
[1763526477873,0.04426337,91818.0,91817.0,0.04349]
[1763526478584,0.04426337,91818.0,91817.0,0.1524824]
[1763526480281,0.04502,91809.0,91808.0,0.0455]
[1763526480585,0.04502,91809.0,91808.0,0.30858]
[1763526480985,0.04502,91809.0,91808.0,0.4175831]
[1763526481281,0.0017673,91810.0,91809.0,0.0455]
[1763526481986,0.00016337,91818.0,91817.0,0.1544924]
[1763526482372,0.02339337,91818.0,91817.0,0.1544924]
[1763526482577,0.04518337,91818.0,91817.0,0.1544924]
[1763526483187,0.06995237,91818.0,91817.0,0.0455]
[1763526483388,0.04502,91809.0,91808.0,0.0455]
[1763526483684,0.43058672,91809.0,91808.0,0.0455]
[1763526483986,0.43058584,91809.0,91808.0,0.0455]
[1763526486785,0.38556584,91809.0,91808.0,0.0455]
[1763526487190,0.40879584,91809.0,91808.0,0.0455]
[1763526487689,0.38556584,91809.0,91808.0,0.0455]
[1763526488890,0.3608,91809.0,91808.0,0.0455]
[1763526492190,0.40582,91809.0,91808.0,0.0455]
[1763526492593,0.3608,91809.0,91808.0,0.0455]
[1763526493898,0.38403,91809.0,91808.0,0.0455]
[1763526494196,0.40582,91809.0,91808.0,0.0455]
[1763526503403,0.3608,91809.0,91808.0,0.0455]
[1763526503812,0.40547,91809.0,91808.0,0.0455]
[1763526505802,0.04467,91809.0,91808.0,0.0455]
[1763526506100,0.02248,91809.0,91808.0,0.4063]
[1763526506307,0.0017673,91810.0,91809.0,0.1550719]
[1763526506505,0.00016337,91818.0,91809.0,0.1550719]
[1763526506506,0.04483337,91818.0,91817.0,0.1550624]
[1763526507905,0.07790042,91852.0,91817.0,0.1550624]
[1763526507906,0.0274,91841.0,91840.0,0.1530051]
[1763526508105,0.0002722,91846.0,91845.0,0.1529991]
[1763526508303,0.0002722,91846.0,91845.0,0.4160391]
[1763526509308,0.0002722,91846.0,91845.0,0.26304]
[1763526509504,0.0002722,91846.0,91844.0,0.1089593]
[1763526510705,0.0012722,91846.0,91844.0,0.1089593]
[1763526511099,0.0012722,91846.0,91843.0,0.1089607]
[1763526514808,0.0012722,91846.0,91844.0,0.1089601]
[1763526515299,0.0012722,91846.0,91836.0,0.00016337]
[1763526515507,0.1092309,91846.0,91839.0,0.1089662]
[1763526515705,0.0012722,91846.0,91841.0,0.1089639]
[1763526515908,0.1102305,91846.0,91841.0,0.1089639]
[1763526516115,0.1089618,91843.0,91840.0,0.0011634]
[1763526516707,0.1089653,91840.0,91836.0,0.10913277]
[1763526516908,0.3608,91837.0,91836.0,0.10913277]
[1763526517806,0.3608,91837.0,91836.0,0.13020277]
[1763526518007,0.3618,91837.0,91836.0,0.13020277]
[1763526518608,0.3618,91837.0,91836.0,0.02123337]
[1763526520105,0.38529779,91837.0,91836.0,0.00016337]
[1763526520312,0.49526639,91837.0,91836.0,0.00016337]
[1763526520508,0.38629779,91837.0,91836.0,0.00016337]
[1763526521212,0.38629779,91837.0,91836.0,0.04420337]
[1763526521414,0.38629779,91837.0,91836.0,0.05775337]
[1763526524008,0.38529779,91837.0,91836.0,0.05775337]
[1763526524208,0.38629779,91837.0,91836.0,0.05775337]
[1763526524616,0.3618,91837.0,91836.0,0.05775337]
[1763526532224,0.38631666,91837.0,91836.0,0.05775337]
[1763526532821,0.38631666,91837.0,91836.0,0.16672317]
[1763526535417,0.49528536,91837.0,91836.0,0.00016337]
[1763526535726,0.1089799,91828.0,91824.0,0.05759]
[1763526535917,0.3608,91825.0,91824.0,0.05759]
[1763526536121,0.38534069,91825.0,91824.0,0.05759]
[1763526537015,0.1378561,91820.0,91819.0,0.05759]
[1763526537216,0.16239679,91820.0,91819.0,0.05759]
[1763526540324,0.1360936,91816.0,91815.0,0.02169337]
[1763526540528,0.52143429,91816.0,91815.0,0.02169337]
[1763526540729,0.52143429,91816.0,91815.0,0.00016337]
[1763526540929,0.52143429,91816.0,91815.0,0.02169337]
[1763526541723,0.1360972,91813.0,91806.0,0.01355]
[1763526541928,0.52143789,91813.0,91812.0,0.03508]
[1763526542326,0.52143789,91813.0,91812.0,0.05777]
[1763526542526,0.1361042,91807.0,91806.0,0.05777]
[1763526545916,0.0271,91798.0,91797.0,0.02169337]
[1763526546226,0.1361209,91793.0,91782.0,0.01363]
[1763526546622,0.1361327,91783.0,91782.0,0.05785]
[1763526546826,0.4969327,91783.0,91782.0,0.05785]
[1763526547426,0.3879,91783.0,91782.0,0.05785]
[1763526547624,0.38797725,91783.0,91782.0,0.05785]
[1763526548022,0.37442725,91783.0,91782.0,0.05785]
[1763526548323,0.36087725,91783.0,91782.0,0.05785]
[1763526548527,0.36187725,91783.0,91782.0,0.05785]
[1763526549426,0.37442725,91783.0,91782.0,0.05785]
[1763526549623,0.38797725,91783.0,91782.0,0.05785]
[1763526550119,0.0271,91781.0,91780.0,0.0453834]
[1763526551220,0.36087725,91783.0,91782.0,0.04422]
[1763526551817,0.38797725,91783.0,91782.0,0.04422]
[1763526553117,0.49700995,91783.0,91782.0,0.04422]
[1763526553322,0.38797725,91783.0,91782.0,0.04422]
[1763526556736,0.36087725,91783.0,91782.0,0.04422]
[1763526557031,0.38797725,91783.0,91782.0,0.04422]
[1763526557431,0.36087725,91783.0,91782.0,0.1532539]
[1763526558533,0.32587725,91783.0,91782.0,0.1532539]
[1763526559127,7.725e-05,91783.0,91782.0,0.1532539]
[1763526561433,0.04515725,91783.0,91782.0,0.04422]
[1763526562233,7.725e-05,91783.0,91782.0,0.04422]
[1763526564543,0.04520725,91783.0,91782.0,0.04422]
[1763526565943,7.725e-05,91783.0,91782.0,0.04422]
[1763526567039,0.02294725,91783.0,91782.0,0.04422]
[1763526567834,0.04520725,91783.0,91782.0,0.04422]
[1763526569334,0.04520725,91783.0,91782.0,0.0578]
[1763526570243,0.02294725,91783.0,91782.0,0.0578]
[1763526571545,7.725e-05,91783.0,91782.0,0.0578]
[1763526572635,0.40439,91798.0,91797.0,0.04285]
[1763526573241,0.4290205,91798.0,91797.0,0.04285]
[1763526573541,0.4290205,91798.0,91797.0,0.30589]
[1763526573542,0.0246305,91798.0,91797.0,0.30589]
[1763526573745,0.0256305,91798.0,91797.0,0.30589]
[1763526573943,0.001,91798.0,91797.0,0.30589]
[1763526576159,0.04459,91798.0,91797.0,0.30589]
[1763526576349,0.43003327,91798.0,91797.0,0.30589]
[1763526578744,0.10902,91794.0,91789.0,0.1518757]
[1763526578951,0.04359,91791.0,91790.0,0.3070534]
[1763526584153,0.04359,91780.0,91764.0,0.01395]
[1763526584342,0.04359,91780.0,91767.0,0.07842609]
[1763526584343,0.04359,91774.0,91767.0,0.07842609]
[1763526584543,0.06827075,91774.0,91766.0,0.00027243]
[1763526585241,0.04359,91767.0,91766.0,0.04312243]
[1763526585551,0.40439,91767.0,91766.0,0.00027243]
[1763526585852,0.04359,91759.0,91758.0,0.0568]
[1763526586243,0.40439,91759.0,91758.0,0.04285]
[1763526590954,0.5134513,91759.0,91758.0,0.04285]
[1763526591166,0.109066,91755.0,91754.0,0.263]
[1763526591357,0.152656,91755.0,91754.0,0.30585]
[1763526592244,0.152656,91755.0,91754.0,0.02151]
[1763526592557,0.152656,91755.0,91754.0,0.02251]
[1763526593145,0.04359,91755.0,91754.0,0.04385]
[1763526593347,0.04359,91755.0,91754.0,0.02251]
[1763526593558,0.04359,91755.0,91754.0,0.04385]
[1763526596443,0.40439,91759.0,91758.0,0.0568]
[1763526597349,0.1517225,91758.0,91757.0,0.04285]
[1763526597749,0.04266,91758.0,91757.0,0.04285]
[1763526600846,0.3608,91759.0,91758.0,0.1669925]
[1763526601354,0.40311,91759.0,91758.0,0.05793]
[1763526601554,0.40311,91759.0,91758.0,0.04444]
[1763526602350,0.04231,91750.0,91749.0,0.04460347]
[1763526602551,0.04231,91750.0,91737.0,0.00010816]
[1763526602552,0.1513963,91738.0,91737.0,0.00010816]
[1763526602756,0.1513963,91738.0,91721.0,0.01349]
[1763526602757,0.1514094,91727.0,91721.0,0.01349]
[1763526603057,0.04231,91727.0,91726.0,0.02231255]
[1763526603450,0.3625673,91730.0,91729.0,0.04444]
[1763526603651,0.36267546,91730.0,91729.0,0.04444]
[1763526604357,0.36167546,91730.0,91729.0,0.04444]
[1763526604559,0.40298546,91730.0,91729.0,0.04444]
[1763526607347,0.40298546,91730.0,91729.0,0.02204]
[1763526607548,0.04231,91727.0,91726.0,0.02231255]
[1763526607862,0.04231,91727.0,91726.0,0.04471255]
[1763526608771,0.04231,91727.0,91726.0,0.15381315]
[1763526609259,0.04231,91727.0,91726.0,0.04471255]
[1763526612262,0.04231,91727.0,91726.0,0.00027255]
[1763526613160,0.04231,91727.0,91726.0,0.02231255]
[1763526613366,0.04231,91727.0,91726.0,0.00027255]
[1763526617464,0.1640265,91721.0,91720.0,0.00010986]
[1763526617667,0.01214,91714.0,91708.0,0.1091219]
[1763526617856,0.04231,91709.0,91708.0,0.1535619]
[1763526618056,0.04241816,91709.0,91708.0,0.1535619]
[1763526619166,0.04241816,91709.0,91708.0,0.1545619]
[1763526619472,0.00010816,91709.0,91708.0,0.1545619]
[1763526619871,0.02111816,91709.0,91708.0,0.1545619]
[1763526620168,0.00010816,91709.0,91708.0,0.1545619]
[1763526620672,0.00010816,91709.0,91708.0,0.1535619]
[1763526620862,0.00010816,91709.0,91708.0,0.1555619]
[1763526621180,0.02111816,91709.0,91708.0,0.1555619]
[1763526622076,0.04241816,91709.0,91708.0,0.1555619]
[1763526622766,0.04241816,91709.0,91708.0,0.04644]
[1763526623963,0.04241816,91709.0,91708.0,0.002]
[1763526624177,0.04466,91691.0,91690.0,0.1529231]
[1763526624368,0.04466,91691.0,91690.0,0.04597803]
[1763526624867,0.04466,91691.0,91690.0,0.02350803]
[1763526625178,0.04466,91687.0,91686.0,0.02158267]
[1763526625368,0.15291516,91687.0,91686.0,0.00027267]
[1763526625677,0.04466,91684.0,91676.0,0.3608]
[1763526625976,0.04466,91684.0,91680.0,0.00219803]
[1763526626469,0.04466,91677.0,91676.0,0.04378]
[1763526626771,0.04266,91677.0,91676.0,0.04378]
[1763526626960,0.04166,91677.0,91676.0,0.04378]
[1763526627570,0.04166,91677.0,91676.0,0.001]
[1763526628177,0.04166,91677.0,91676.0,0.002]
[1763526628378,0.1508188,91677.0,91676.0,0.002]
[1763526628578,0.04166,91677.0,91676.0,0.04602]
[1763526629274,0.04166,91677.0,91676.0,0.002]
[1763526630278,0.04166,91677.0,91676.0,0.001]
[1763526630876,0.1091602,91676.0,91665.0,0.01284]
[1763526631183,0.04435,91666.0,91665.0,0.02206]
[1763526631384,0.04446723,91666.0,91665.0,0.04402]
[1763526632082,0.04446723,91666.0,91665.0,0.04502]
[1763526632778,0.02258723,91666.0,91665.0,0.04602]
[1763526632967,0.04446723,91666.0,91665.0,0.04602]
[1763526633373,0.15363913,91666.0,91665.0,0.002]
[1763526633678,0.04446723,91666.0,91665.0,0.04602]
[1763526633878,1.54446723,91666.0,91665.0,0.04602]
[1763526634474,0.04446723,91666.0,91665.0,0.04602]
[1763526634673,0.04446723,91666.0,91665.0,0.02406]
[1763526634869,0.04446723,91666.0,91665.0,0.04602]
[1763526635069,0.02258723,91666.0,91665.0,0.04602]
[1763526635275,0.00011723,91666.0,91665.0,0.04602]
[1763526635684,0.02258723,91666.0,91665.0,0.04602]
[1763526636277,0.00011723,91666.0,91665.0,0.04602]
[1763526639287,0.00011723,91666.0,91665.0,0.1551931]
[1763526640186,0.02263356,91675.0,91674.0,0.1531824]
[1763526641185,0.02274356,91675.0,91674.0,0.1531824]
[1763526641385,0.00027356,91675.0,91674.0,0.1531824]
[1763526642676,0.02274356,91675.0,91674.0,0.04402]
[1763526642879,0.04462356,91675.0,91674.0,0.04402]
[1763526644676,0.04462356,91675.0,91674.0,0.02206]
[1763526644878,0.04462356,91675.0,91674.0,0.04402]
[1763526648792,0.04462356,91675.0,91674.0,0.02206]
[1763526648979,0.04435,91671.0,91670.0,0.02425803]
[1763526649177,0.1535159,91671.0,91670.0,0.00219803]
[1763526649384,0.04435,91671.0,91670.0,0.04621803]
[1763526651281,0.153516,91671.0,91670.0,0.04621803]
[1763526651678,0.04435,91671.0,91670.0,0.04621803]
[1763526652995,0.04435,91659.0,91658.0,0.04402]
[1763526653292,0.04435,91659.0,91658.0,0.1532014]
[1763526653494,0.02247,91659.0,91658.0,0.1532014]
[1763526653695,0.1535256,91663.0,91662.0,0.04402]
[1763526654091,0.04435,91663.0,91662.0,0.04402]
[1763526654678,0.02247,91663.0,91662.0,0.04402]
[1763526654884,0.40515,91664.0,91663.0,0.04402]
[1763526655090,0.42971239,91664.0,91663.0,0.04402]